bitfinex/quotes_BTCUSD_20240701
["timestamp","ask_amount","ask_price","bid_price","bid_amount"]
[1719860873813,0.15214924,63618.0,63617.0,0.26080263]
[1719860874016,0.16006462,63618.0,63617.0,0.26080263]
[1719860874297,0.16006462,63618.0,63617.0,0.26070263]
[1719860874815,0.15214924,63618.0,63617.0,0.26070263]
[1719860875031,0.15214924,63618.0,63617.0,0.201]
[1719860875196,0.17836171,63618.0,63617.0,0.201]
[1719860875410,0.17044633,63618.0,63617.0,0.2601]
[1719860875543,0.17836171,63618.0,63617.0,0.2601]
[1719860875932,0.17836171,63618.0,63617.0,0.26070263]
[1719860876081,0.17836171,63618.0,63617.0,0.26080263]
[1719860876280,0.17044633,63618.0,63617.0,0.26080263]
[1719860876480,0.17836171,63618.0,63617.0,0.26080263]
[1719860877708,0.1782102,63618.0,63617.0,0.26080263]
[1719860878410,0.1782102,63618.0,63617.0,0.26090263]
[1719860878649,0.1782102,63618.0,63617.0,0.20180263]
[1719860878851,0.1783102,63618.0,63617.0,0.26090263]
[1719860879003,0.17039482,63618.0,63617.0,0.20180263]
[1719860879164,0.1783102,63618.0,63617.0,0.20180263]
[1719860879615,0.1783102,63618.0,63617.0,0.26090263]
[1719860879824,0.1783102,63618.0,63617.0,0.20180263]
[1719860880017,0.1784102,63618.0,63617.0,0.20180263]
[1719860880337,0.1784102,63618.0,63617.0,0.0012]
[1719860880338,0.91668012,63618.0,63617.0,0.0012]
[1719860880538,1.16652663,63618.0,63617.0,0.0012]
[1719860880745,1.37358252,63618.0,63617.0,0.0012]
[1719860880948,1.37358629,63618.0,63617.0,0.0012]
[1719860881511,1.37358629,63618.0,63617.0,0.0002]
[1719860881512,1.27825831,63618.0,63617.0,0.0002]
[1719860881717,1.29125831,63618.0,63617.0,0.0012]
[1719860881938,1.29125831,63618.0,63617.0,0.0022]
[1719860881939,1.39857256,63618.0,63617.0,0.0022]
[1719860882084,2.11389984,63618.0,63617.0,0.0012]
[1719860882251,2.30050168,63618.0,63617.0,0.0012]
[1719860882451,2.00060168,63618.0,63617.0,0.0012]
[1719860882710,2.01360168,63618.0,63617.0,0.0022]
[1719860883142,2.06400218,63618.0,63617.0,0.0022]
[1719860883332,2.36667606,63618.0,63617.0,0.0022]
[1719860883575,2.28327229,63618.0,63617.0,0.0022]
[1719860883732,2.58620134,63618.0,63617.0,0.0022]
[1719860884103,2.28630134,63618.0,63617.0,0.0022]
[1719860885041,2.23223872,63618.0,63617.0,0.0022]
[1719860885276,2.18977275,63618.0,63617.0,0.0022]
[1719860886312,2.19038946,63618.0,63617.0,0.0022]
[1719860887207,2.49028946,63618.0,63617.0,0.0012]
[1719860887410,2.47628946,63618.0,63617.0,0.0012]
[1719860887624,2.47628946,63618.0,63617.0,1e-08]
[1719860887795,0.1463,63607.0,63604.0,0.000924]
[1719860888002,0.19868838,63606.0,63604.0,0.000924]
[1719860888210,0.0363494,63605.0,63604.0,0.000924]
[1719860888545,0.19868838,63605.0,63604.0,0.000924]
[1719860888746,0.20649283,63605.0,63604.0,0.000924]
[1719860889527,0.20645196,63605.0,63604.0,0.000924]
[1719860890807,0.21635196,63605.0,63604.0,0.000924]
[1719860891013,0.22435196,63605.0,63604.0,0.000924]
[1719860891427,0.22465196,63605.0,63604.0,0.000924]
[1719860891638,0.22435196,63605.0,63604.0,0.000924]
[1719860892008,0.21665196,63605.0,63604.0,0.000924]
[1719860892225,0.20655196,63605.0,63604.0,0.000924]
[1719860892526,1.63409196,63605.0,63604.0,0.000924]
[1719860892805,2.16905019,63605.0,63604.0,0.000924]
[1719860893107,2.23899794,63605.0,63604.0,0.000924]
[1719860893361,2.26230681,63605.0,63604.0,0.000924]
[1719860893570,2.22530976,63605.0,63604.0,0.000924]
[1719860893956,2.31854524,63605.0,63604.0,0.000924]
[1719860894084,2.30454524,63605.0,63604.0,0.000924]
[1719860894285,0.65858396,63605.0,63604.0,0.000924]
[1719860894523,0.98732396,63605.0,63604.0,0.000924]
[1719860894743,1.41653761,63605.0,63604.0,0.000924]
[1719860894943,1.43053761,63605.0,63604.0,0.000924]
[1719860895147,1.36064725,63605.0,63604.0,0.000924]
[1719860895347,1.30410987,63605.0,63604.0,0.000924]
[1719860895549,1.30417199,63605.0,63604.0,0.000924]
[1719860895760,1.28367365,63605.0,63604.0,0.000924]
[1719860895963,1.30422905,63605.0,63604.0,0.000924]
[1719860896359,1.30412905,63605.0,63604.0,0.000924]
[1719860896586,1.30382905,63605.0,63604.0,0.000924]
[1719860896785,1.25527714,63605.0,63604.0,0.000924]
[1719860897024,1.30574591,63605.0,63604.0,0.000924]
[1719860897262,1.30564591,63605.0,63604.0,0.000924]
[1719860897409,1.32173911,63605.0,63604.0,0.000924]
[1719860898394,1.00729911,63605.0,63604.0,0.000924]
[1719860899131,0.93608984,63605.0,63604.0,0.000924]
[1719860899363,1.00804902,63605.0,63604.0,0.000924]
[1719860899992,1.71645639,63605.0,63604.0,0.000924]
[1719860900388,1.77353092,63605.0,63604.0,0.000924]
[1719860900564,2.63723701,63605.0,63604.0,0.000924]
[1719860900783,2.66023701,63605.0,63604.0,0.000924]
[1719860901414,2.56967092,63605.0,63604.0,0.000924]
[1719860901634,2.26977092,63605.0,63604.0,0.000924]
[1719860901862,1.65563355,63605.0,63604.0,0.000924]
[1719860902095,1.41665902,63605.0,63604.0,0.000924]
[1719860902359,1.36645765,63605.0,63604.0,0.000924]
[1719860902567,0.53632035,63605.0,63604.0,0.000924]
[1719860902793,0.28602714,63605.0,63604.0,0.000924]
[1719860903014,0.25165177,63605.0,63604.0,0.000924]
[1719860903472,0.28583975,63605.0,63604.0,0.000924]
[1719860903962,0.23765177,63605.0,63604.0,0.000924]
[1719860904181,0.25065177,63605.0,63604.0,0.000924]
[1719860904416,0.23765177,63605.0,63604.0,0.000924]
[1719860905331,0.25165177,63605.0,63604.0,0.000924]
[1719860905526,0.23669609,63605.0,63604.0,0.000924]
[1719860905903,0.24979609,63605.0,63604.0,0.000924]
[1719860906329,0.28398964,63605.0,63604.0,0.000924]
[1719860907361,0.33778854,63605.0,63604.0,0.000924]
[1719860907746,0.33788854,63605.0,63604.0,0.000924]
[1719860907959,0.33788854,63605.0,63604.0,0.001024]
[1719860908232,1.006803,63605.0,63604.0,0.001024]
[1719860908476,1.06355483,63605.0,63604.0,0.001024]
[1719860908701,1.06369694,63605.0,63604.0,0.001024]
[1719860908937,1.06369694,63605.0,63604.0,0.001124]
[1719860910073,2.08654431,63605.0,63604.0,0.001124]
[1719860910304,2.43077802,63605.0,63604.0,0.001124]
[1719860910524,2.26844431,63605.0,63604.0,0.001124]
[1719860910984,2.88230105,63605.0,63604.0,0.001124]
[1719860911777,2.88369762,63605.0,63604.0,0.001124]
[1719860912183,2.88370821,63605.0,63604.0,0.001124]
[1719860912794,2.57600376,63605.0,63604.0,0.001124]
[1719860913561,2.22202247,63605.0,63604.0,0.001124]
[1719860913813,0.60331487,63605.0,63604.0,0.001124]
[1719860914909,0.60264781,63605.0,63604.0,0.001124]
[1719860915142,0.60288032,63605.0,63604.0,0.001124]
[1719860915799,0.91732032,63605.0,63604.0,0.001124]
[1719860915974,0.60288032,63605.0,63604.0,0.001124]
[1719860916177,0.60258032,63605.0,63604.0,0.001124]
[1719860916377,0.60288032,63605.0,63604.0,0.001124]
[1719860916780,0.91732032,63605.0,63604.0,0.001124]
[1719860916945,0.91702032,63605.0,63604.0,0.001124]
[1719860917804,0.44536032,63605.0,63604.0,0.001124]
[1719860918004,0.44543799,63605.0,63604.0,0.001124]
[1719860918410,0.38837587,63605.0,63604.0,0.138324]
[1719860919053,0.38837587,63605.0,63604.0,0.079224]
[1719860919371,0.38837587,63605.0,63604.0,0.001124]
[1719860920589,0.22663689,63605.0,63604.0,0.06082663]
[1719860920788,0.06475454,63605.0,63604.0,0.12202663]
[1719860921005,0.06475454,63605.0,63604.0,0.20112663]
[1719860921204,0.0272,63605.0,63604.0,0.20112663]
[1719860921442,0.06379659,63605.0,63604.0,0.20112663]
[1719860921645,0.01660833,63605.0,63604.0,0.20112663]
[1719860921885,0.02960827,63605.0,63604.0,0.20112663]
[1719860922107,0.04360827,63605.0,63604.0,0.20112663]
[1719860922332,0.03060827,63605.0,63604.0,0.20112663]
[1719860922550,0.01660827,63605.0,63604.0,0.20112663]
[1719860922781,0.01860827,63605.0,63604.0,0.20112663]
[1719860924514,0.03881245,63605.0,63604.0,0.20112663]
[1719860924757,0.01861245,63605.0,63604.0,0.20112663]
[1719860924955,0.01861245,63605.0,63604.0,0.001124]
[1719860924956,0.18095143,63605.0,63604.0,0.001124]
[1719860925160,0.25891155,63605.0,63604.0,0.001124]
[1719860925336,0.29309931,63605.0,63604.0,0.001124]
[1719860926122,0.26591155,63605.0,63604.0,0.001124]
[1719860926464,0.30012685,63605.0,63604.0,0.001124]
[1719860926879,0.26591155,63605.0,63604.0,0.001124]
[1719860927633,0.2918468,63605.0,63604.0,0.001124]
[1719860927850,0.3118468,63605.0,63604.0,0.001124]
[1719860928317,0.3121468,63605.0,63604.0,0.001124]
[1719860928726,0.41624176,63605.0,63604.0,0.001124]
[1719860928904,0.56334176,63605.0,63604.0,0.001124]
[1719860929553,0.72056176,63605.0,63604.0,0.001124]
[1719860929763,0.56304176,63605.0,63604.0,0.001124]
[1719860930179,1.06223305,63605.0,63604.0,0.001124]
[1719860930380,1.49352152,63605.0,63604.0,0.001124]
[1719860930590,1.37667305,63605.0,63604.0,0.001124]
[1719860930821,1.24800316,63605.0,63604.0,0.001124]
[1719860931071,1.3780095,63605.0,63604.0,0.001124]
[1719860933987,1.37812171,63605.0,63604.0,0.001124]
[1719860934690,1.67802171,63605.0,63604.0,0.001124]
[1719860934923,1.67802171,63605.0,63593.0,0.4662]
[1719860934924,0.0003,63596.0,63593.0,0.4662]
[1719860935153,0.0003,63596.0,63591.0,0.0642]
[1719860935154,0.34994695,63595.0,63591.0,0.0642]
[1719860935365,0.18790797,63594.0,63591.0,0.0642]
[1719860935576,0.29259138,63593.0,63591.0,0.0642]
[1719860935790,0.09594404,63592.0,63591.0,0.0642]
[1719860936891,0.13029455,63592.0,63591.0,0.0652]
[1719860937121,0.1307441,63592.0,63591.0,0.0642]
[1719860937563,0.1317441,63592.0,63591.0,0.0652]
[1719860937797,0.19075966,63592.0,63591.0,0.0652]
[1719860938013,0.19075966,63592.0,63591.0,0.001]
[1719860938215,0.1316441,63592.0,63591.0,0.001]
[1719860938419,0.19227895,63592.0,63591.0,0.003]
[1719860938955,0.19127895,63592.0,63591.0,0.001]
[1719860939134,0.19127895,63592.0,63591.0,0.002]
[1719860939742,0.1316441,63592.0,63591.0,0.0601]
[1719860940033,0.09629228,63592.0,63591.0,0.06070263]
[1719860940204,0.09729228,63592.0,63591.0,0.20400263]
[1719860940471,0.09736275,63592.0,63591.0,0.20400263]
[1719860940720,0.03970403,63592.0,63591.0,0.20400263]
[1719860940936,0.03988133,63592.0,63591.0,0.20400263]
[1719860942027,0.03978133,63592.0,63591.0,0.20400263]
[1719860942731,0.03958976,63592.0,63591.0,0.20400263]
[1719860943411,0.03958573,63592.0,63591.0,0.20400263]
[1719860944197,0.03948573,63592.0,63591.0,0.20400263]
[1719860944838,0.03948573,63592.0,63591.0,0.23714757]
[1719860945197,0.0008,63592.0,63591.0,0.39440157]
[1719860945369,0.01736452,63592.0,63591.0,0.39440157]
[1719860945807,0.0008,63592.0,63591.0,0.39125663]
[1719860946071,0.01736295,63592.0,63591.0,0.39125663]
[1719860946326,0.0008,63592.0,63591.0,0.39125663]
[1719860946750,0.0008,63592.0,63591.0,0.39025663]
[1719860947003,0.00104,63605.0,63600.0,0.2]
[1719860947224,0.25811997,63604.0,63601.0,0.0591]
[1719860947448,0.03783399,63603.0,63601.0,0.0591]
[1719860947729,0.02137327,63602.0,63601.0,0.0591]
[1719860947947,0.02137327,63602.0,63600.0,0.2]
[1719860948165,0.02137327,63601.0,63600.0,0.2]
[1719860948401,0.02137327,63603.0,63600.0,0.2591]
[1719860948627,0.02137327,63602.0,63601.0,0.0591]
[1719860949085,0.16233898,63604.0,63602.0,0.0591]
[1719860949273,0.07905648,63603.0,63602.0,0.0591]
[1719860949491,0.07895755,63603.0,63602.0,0.0591]
[1719860950365,0.08795755,63603.0,63602.0,0.0591]
[1719860950582,0.08795755,63603.0,63601.0,0.0831]
[1719860950790,0.17533898,63604.0,63601.0,0.0831]
[1719860950791,0.07895755,63602.0,63601.0,0.0831]
[1719860951437,0.33361622,63602.0,63600.0,0.0001]
[1719860951634,0.27559388,63601.0,63600.0,0.0001]
[1719860951860,0.33271534,63601.0,63600.0,0.0001]
[1719860951972,0.64155465,63601.0,63600.0,0.0001]
[1719860952171,0.4347368,63601.0,63600.0,0.0001]
[1719860952392,0.54841227,63601.0,63600.0,0.0001]
[1719860952594,0.2775068,63601.0,63600.0,0.0001]
[1719860952828,0.39132911,63601.0,63600.0,0.0002]
[1719860953251,0.54855911,63601.0,63600.0,0.0002]
[1719860953477,0.55755911,63601.0,63600.0,0.0002]
[1719860954154,0.65118381,63601.0,63600.0,0.0002]
[1719860954402,0.65818381,63601.0,63600.0,0.0002]
[1719860955134,0.57873671,63601.0,63600.0,0.0002]
[1719860955354,1.20765671,63601.0,63600.0,0.0002]
[1719860957694,1.20983118,63601.0,63600.0,0.0002]
[1719860958638,1.15891692,63601.0,63600.0,0.0002]
[1719860958854,1.13051605,63601.0,63600.0,0.0002]
[1719860959059,1.20935115,63601.0,63600.0,0.0002]
[1719860959734,1.2096941,63601.0,63600.0,0.0002]
[1719860961626,2.22222147,63601.0,63600.0,0.0002]
[1719860961832,2.27660316,63601.0,63600.0,0.0002]
[1719860962318,2.26960316,63601.0,63600.0,0.0002]
[1719860962659,2.1553228,63601.0,63600.0,0.0002]
[1719860962882,2.2607913,63601.0,63600.0,0.0002]
[1719860963090,2.2747913,63601.0,63600.0,0.0002]
[1719860964142,2.2847913,63601.0,63600.0,0.0002]
[1719860964716,2.2747913,63601.0,63600.0,0.0002]
[1719860964913,2.2887913,63601.0,63600.0,0.0002]
[1719860965974,2.5886913,63601.0,63600.0,0.0002]
[1719860966189,2.18465582,63601.0,63600.0,0.0002]
[1719860966326,2.29011937,63601.0,63600.0,0.0002]
[1719860966534,2.10418417,63601.0,63600.0,0.0002]
[1719860966866,2.290114,63601.0,63600.0,0.0002]
[1719860967078,2.55177343,63601.0,63600.0,0.0002]
[1719860967264,2.87467343,63601.0,63600.0,0.0002]
[1719860967659,3.35146714,63601.0,63600.0,0.001124]
[1719860967917,3.45146714,63601.0,63600.0,0.001124]
[1719860968271,3.28913343,63601.0,63600.0,0.001124]
[1719860969357,3.1032036,63601.0,63600.0,0.001124]
[1719860969558,3.28811716,63601.0,63600.0,0.001124]
[1719860969760,3.55326432,63601.0,63600.0,0.001124]
[1719860969959,3.91106227,63601.0,63600.0,0.001124]
[1719860970229,3.75326432,63601.0,63600.0,0.001124]
[1719860970445,0.786635,63586.0,63585.0,0.000924]
[1719860970645,1.19439281,63586.0,63585.0,0.000924]
[1719860970976,1.31126183,63586.0,63585.0,0.000924]
[1719860971568,1.19439281,63586.0,63585.0,0.000924]
[1719860971941,1.20439281,63586.0,63585.0,0.000924]
[1719860972523,1.2978841,63586.0,63585.0,0.000924]
[1719860972726,1.09563827,63586.0,63585.0,0.000924]
[1719860972925,1.29921134,63586.0,63585.0,0.000924]
[1719860973333,1.70831534,63586.0,63585.0,0.000924]
[1719860973534,2.03158883,63586.0,63585.0,0.000924]
[1719860973708,1.74368883,63586.0,63585.0,0.000924]
[1719860973911,1.62682138,63586.0,63585.0,0.000924]
[1719860975130,1.61682138,63586.0,63585.0,0.000924]
[1719860975325,1.61672138,63586.0,63585.0,0.000924]
[1719860975551,1.69758055,63586.0,63585.0,0.000924]
[1719860975925,1.6532494,63586.0,63585.0,0.000924]
[1719860976128,1.6532494,63586.0,63585.0,0.150124]
[1719860976129,0.74949316,63586.0,63585.0,0.150124]
[1719860976322,0.7770078,63586.0,63585.0,0.150124]
[1719860976533,0.37884959,63586.0,63585.0,0.150124]
[1719860976738,0.32172813,63586.0,63585.0,0.150124]
[1719860977148,0.30772813,63586.0,63585.0,0.150124]
[1719860977348,0.37637219,63586.0,63585.0,0.150124]
[1719860978240,0.34837219,63586.0,63585.0,0.150124]
[1719860978448,0.36237219,63586.0,63585.0,0.150124]
[1719860978810,0.34837219,63586.0,63585.0,0.150124]
[1719860979012,0.2747294,63586.0,63585.0,0.150124]
[1719860979217,0.30713347,63586.0,63585.0,0.150124]
[1719860979435,0.36123502,63586.0,63585.0,0.150124]
[1719860979634,0.37523502,63586.0,63585.0,0.150124]
[1719860980841,0.37533502,63586.0,63585.0,0.150124]
[1719860981041,0.39263737,63586.0,63585.0,0.150124]
[1719860981593,0.39263737,63586.0,63585.0,0.150224]
[1719860982277,0.31948924,63586.0,63585.0,0.150224]
[1719860982555,0.39254053,63586.0,63585.0,0.067624]
[1719860983026,0.39264053,63586.0,63585.0,0.067624]
[1719860984441,0.45072969,63586.0,63585.0,0.067624]
[1719860985100,0.45072969,63586.0,63585.0,0.067724]
[1719860985330,0.45079858,63586.0,63585.0,0.067724]
[1719860985523,0.3706474,63586.0,63585.0,0.067724]
[1719860985801,0.45082817,63586.0,63585.0,0.067724]
[1719860987849,0.51442817,63586.0,63585.0,0.067724]
[1719860988232,0.51442817,63586.0,63585.0,0.001124]
[1719860988442,0.98622917,63586.0,63585.0,0.001124]
[1719860988643,1.54785824,63586.0,63585.0,0.001124]
[1719860988779,1.6796514,63586.0,63585.0,0.001124]
[1719860989188,1.74977556,63586.0,63585.0,0.001124]
[1719860989698,1.6796514,63586.0,63585.0,0.001124]
[1719860989904,1.68617372,63586.0,63585.0,0.001124]
[1719860990110,1.6912514,63586.0,63585.0,0.001124]
[1719860990495,2.38511877,63586.0,63585.0,0.001124]
[1719860990711,2.23320819,63586.0,63585.0,0.001124]
[1719860991918,2.23364964,63586.0,63585.0,0.001124]
[1719860992124,2.53354964,63586.0,63585.0,0.001124]
[1719860992349,2.140136,63586.0,63585.0,0.001124]
[1719860993465,2.25702805,63586.0,63585.0,0.001124]
[1719860994611,2.41602805,63586.0,63585.0,0.001124]
[1719860995217,2.29923823,63586.0,63585.0,0.001124]
[1719860995627,2.21812219,63586.0,63585.0,0.001124]
[1719860995797,2.29931612,63586.0,63585.0,0.001124]
[1719860998367,2.2994207,63586.0,63585.0,0.001124]
[1719860998899,2.86072761,63586.0,63585.0,0.001124]
[1719860999444,3.00108521,63586.0,63585.0,0.001124]
[1719860999807,2.97308521,63586.0,63585.0,8.766e-05]
[1719861000228,3.00108521,63586.0,63585.0,8.766e-05]
[1719861000436,2.56082761,63586.0,63585.0,8.766e-05]
[1719861000833,2.54682761,63586.0,63585.0,8.766e-05]
[1719861001043,2.56130716,63586.0,63585.0,8.766e-05]
[1719861001272,2.70180919,63586.0,63585.0,8.766e-05]
[1719861001670,2.68780919,63586.0,63585.0,8.766e-05]
[1719861002112,2.70180919,63586.0,63585.0,0.00101166]
[1719861002326,3.00170919,63586.0,63585.0,0.00111166]
[1719861002526,2.99097529,63586.0,63585.0,0.00010001]
[1719861002713,2.58514716,63586.0,63585.0,0.00010001]
[1719861002926,2.42614716,63586.0,63585.0,0.00010001]
[1719861003273,2.88504716,63586.0,63585.0,0.00010001]
[1719861003477,3.46538116,63586.0,63585.0,0.00010001]
[1719861003691,3.72812228,63586.0,63585.0,0.00010001]
[1719861003914,3.44024023,63586.0,63585.0,0.00010001]
[1719861004118,3.72872195,63586.0,63585.0,0.00010001]
[1719861004280,3.72872195,63586.0,63585.0,0.00020001]
[1719861004492,3.88768639,63586.0,63585.0,0.0001]
[1719861005093,0.78646,63576.0,63575.0,0.000924]
[1719861005301,1.19480517,63576.0,63575.0,0.000924]
[1719861006087,1.24941313,63576.0,63575.0,0.000924]
[1719861006306,1.25941313,63576.0,63575.0,0.000924]
[1719861006707,1.27241313,63576.0,63575.0,0.000924]
[1719861007127,1.08364689,63576.0,63575.0,0.000924]
[1719861007330,1.27356638,63576.0,63575.0,0.000924]
[1719861007565,1.27346638,63576.0,63575.0,0.000924]
[1719861008549,0.48710638,63576.0,63575.0,0.000924]
[1719861008842,0.43247731,63576.0,63575.0,0.147824]
[1719861009037,0.37259278,63576.0,63575.0,0.147824]
[1719861009655,0.37259278,63576.0,63575.0,0.207224]
[1719861010107,0.2102538,63576.0,63575.0,0.207224]
[1719861010305,0.15684954,63576.0,63575.0,0.20782663]
[1719861010509,0.06442567,63576.0,63575.0,0.20782663]
[1719861010709,0.06452567,63576.0,63575.0,0.20782663]
[1719861011086,0.06452567,63576.0,63575.0,0.23782663]
[1719861011371,0.05152567,63576.0,63575.0,0.23782663]
[1719861011574,0.04870401,63576.0,63575.0,0.20782663]
[1719861011834,0.04880401,63576.0,63575.0,0.20782663]
[1719861011965,0.05780401,63576.0,63575.0,0.20782663]
[1719861012177,0.04780401,63576.0,63575.0,0.20792663]
[1719861012597,0.05380401,63576.0,63575.0,0.20802663]
[1719861013496,0.05408527,63576.0,63575.0,0.20802663]
[1719861013907,0.03212732,63576.0,63575.0,0.20802663]
[1719861014131,0.05412193,63576.0,63575.0,0.20802663]
[1719861014736,0.05412193,63576.0,63575.0,0.23802663]
[1719861015256,0.05412193,63576.0,63575.0,0.39532063]
[1719861016243,0.05412193,63576.0,63575.0,1.02449863]
[1719861016470,0.05412193,63576.0,63575.0,1.80142661]
[1719861016471,0.03208907,63576.0,63575.0,1.80142661]
[1719861016684,0.00084,63586.0,63585.0,1.21694963]
[1719861016930,0.01777138,63586.0,63585.0,1.21694963]
[1719861018438,0.00084,63586.0,63585.0,1.21694963]
[1719861018649,0.00084,63586.0,63585.0,1.21794963]
[1719861018650,0.01673032,63586.0,63585.0,1.21794963]
[1719861018853,0.00184,63586.0,63585.0,1.21794963]
[1719861019230,0.00284,63586.0,63585.0,0.91041063]
[1719861019433,0.00284,63586.0,63585.0,0.40860263]
[1719861019634,0.01773049,63586.0,63585.0,0.40860263]
[1719861020063,0.01773143,63586.0,63585.0,0.40860263]
[1719861020870,0.01773143,63586.0,63585.0,0.43760263]
[1719861020871,0.01673143,63586.0,63585.0,0.43760263]
[1719861021188,0.01673143,63586.0,63585.0,0.24560263]
[1719861021189,0.01773143,63586.0,63585.0,0.24560263]
[1719861021391,0.00284,63586.0,63585.0,0.44560263]
[1719861021596,0.00284,63586.0,63585.0,0.41560263]
[1719861022027,0.00284,63586.0,63585.0,0.40860263]
[1719861022184,0.00284,63586.0,63585.0,0.40850263]
[1719861022185,0.00184,63586.0,63585.0,0.40850263]
[1719861022370,0.00284,63586.0,63585.0,0.44550263]
[1719861022811,0.00184,63586.0,63585.0,0.43850263]
[1719861023276,0.00184,63586.0,63585.0,0.44850263]
[1719861023277,0.00284,63586.0,63585.0,0.44850263]
[1719861024662,0.00284,63586.0,63585.0,0.92031063]
[1719861025038,0.00284,63586.0,63585.0,1.23484963]
[1719861025258,0.00284,63586.0,63585.0,1.84938863]
[1719861025660,0.00284,63586.0,63585.0,1.84948863]
[1719861026006,0.00284,63586.0,63585.0,2.11182761]
[1719861026212,0.00284,63586.0,63585.0,2.11192761]
[1719861027144,0.00184,63586.0,63585.0,2.10192761]
[1719861027354,0.00084,63586.0,63585.0,2.10092761]
[1719861027576,0.00284,63586.0,63585.0,2.11092761]
[1719861027807,0.00284,63586.0,63585.0,1.81092761]
[1719861028015,0.00284,63586.0,63585.0,1.96992761]
[1719861028606,0.00294,63586.0,63585.0,1.96992761]
[1719861029245,0.00304,63586.0,63585.0,1.96992761]
[1719861031266,0.00304,63586.0,63585.0,1.01951063]
[1719861031522,0.00304,63586.0,63585.0,0.41770263]
[1719861032279,0.00204,63586.0,63585.0,0.41070263]
[1719861032678,0.00304,63586.0,63585.0,0.41670263]
[1719861033843,0.00204,63586.0,63585.0,0.40670263]
[1719861034248,0.00204,63586.0,63585.0,0.41162663]
[1719861036488,0.01705007,63586.0,63585.0,0.41162663]
[1719861039051,0.00204,63586.0,63585.0,0.41162663]
[1719861039226,0.03795216,63586.0,63585.0,0.41162663]
[1719861040543,0.03795216,63586.0,63585.0,0.21172663]
[1719861041384,0.03795216,63586.0,63585.0,0.27102663]
[1719861042241,0.01705237,63586.0,63585.0,0.27102663]
[1719861042463,0.01705237,63586.0,63585.0,0.211124]
[1719861042681,0.01705237,63586.0,63585.0,0.21172663]
[1719861042682,0.03835188,63586.0,63585.0,0.21172663]
[1719861042909,0.04977331,63586.0,63585.0,0.27102663]
[1719861043299,0.04977331,63586.0,63585.0,0.33192663]
[1719861043497,0.03735188,63586.0,63585.0,0.32192663]
[1719861043921,0.03735188,63586.0,63585.0,0.32392663]
[1719861044825,0.03735188,63586.0,63585.0,0.32792663]
[1719861045384,0.0373241,63586.0,63585.0,0.32792663]
[1719861047313,0.0373241,63586.0,63585.0,0.20772663]
[1719861047509,0.0373241,63586.0,63585.0,0.26702663]
[1719861048464,0.00104,63586.0,63585.0,0.26702663]
[1719861049074,0.01591243,63586.0,63585.0,0.26702663]
[1719861049384,0.03545652,63586.0,63585.0,0.26702663]
[1719861051778,0.00104,63586.0,63585.0,0.26702663]
[1719861051902,0.02072687,63586.0,63585.0,0.26702663]
[1719861052098,0.03561356,63586.0,63585.0,0.26702663]
[1719861052345,0.03561393,63586.0,63585.0,0.26702663]
[1719861054306,0.09351185,63586.0,63585.0,0.26702663]
[1719861054527,0.24301185,63586.0,63585.0,0.007124]
[1719861054738,0.60679938,63586.0,63585.0,0.007124]
[1719861054939,0.91758787,63586.0,63585.0,0.007124]
[1719861055074,1.11173451,63586.0,63585.0,0.007124]
[1719861055496,1.11173451,63586.0,63585.0,0.003124]
[1719861055704,1.04137668,63586.0,63585.0,0.003124]
[1719861055908,1.85883656,63586.0,63585.0,0.003124]
[1719861056128,1.76501468,63586.0,63585.0,0.003124]
[1719861056299,1.76501468,63586.0,63585.0,0.001124]
[1719861056477,1.82816224,63586.0,63585.0,0.002124]
[1719861056959,1.83916224,63586.0,63585.0,0.003124]
[1719861057620,1.82916224,63586.0,63585.0,0.002124]
[1719861057851,1.70141468,63586.0,63585.0,0.001124]
[1719861058121,1.62231165,63586.0,63585.0,0.003124]
[1719861058352,2.37951486,63586.0,63585.0,0.003124]
[1719861058602,3.11284535,63586.0,63585.0,0.003124]
[1719861058863,3.27071773,63586.0,63585.0,0.003124]
[1719861059094,3.28821201,63586.0,63585.0,0.003124]
[1719861060239,3.28814755,63586.0,63585.0,0.003124]
[1719861060705,3.01105882,63586.0,63585.0,0.003124]
[1719861060962,3.28798804,63586.0,63585.0,0.003124]
[1719861061259,1.75969345,63586.0,63585.0,0.003124]
[1719861061516,2.3367809,63586.0,63585.0,0.003124]
[1719861061791,3.09128932,63586.0,63585.0,0.003124]
[1719861062001,2.65081227,63586.0,63585.0,0.003124]
[1719861062258,2.97371227,63586.0,63585.0,0.003124]
[1719861062476,3.11428751,63586.0,63585.0,0.003124]
[1719861062680,3.01571205,63586.0,63585.0,0.003124]
[1719861062902,2.87513681,63586.0,63585.0,0.003124]
[1719861063148,3.01569838,63586.0,63585.0,0.003124]
[1719861063383,2.87513681,63586.0,63585.0,0.003124]
[1719861063630,2.57542173,63586.0,63585.0,0.003124]
[1719861063898,1.42395636,63586.0,63585.0,0.003124]
[1719861064123,1.23281402,63586.0,63585.0,0.003124]
[1719861064359,1.52392125,63586.0,63585.0,0.003124]
[1719861064589,1.05870608,63586.0,63585.0,0.003124]
[1719861065097,1.11575469,63586.0,63585.0,0.003124]
[1719861065591,1.21575469,63586.0,63585.0,0.003124]
[1719861065828,0.39988369,63586.0,63585.0,0.003124]
[1719861066046,0.34283508,63586.0,63585.0,0.003124]
[1719861066737,0.34296342,63586.0,63585.0,0.003124]
[1719861066976,0.33196342,63586.0,63585.0,0.002124]
[1719861067209,1.00665458,63586.0,63585.0,0.002124]
[1719861067445,1.01765458,63586.0,63585.0,0.003124]
[1719861067668,1.01765458,63586.0,63585.0,0.002124]
[1719861068467,1.01565458,63586.0,63585.0,0.002124]
[1719861068669,1.02765458,63586.0,63585.0,0.003124]
[1719861068928,1.34218858,63586.0,63585.0,0.003124]
[1719861069146,1.4124834,63586.0,63585.0,0.003124]
[1719861069376,1.40049831,63586.0,63585.0,0.002124]
[1719861069812,1.24122271,63586.0,63585.0,0.002124]
[1719861070025,1.38920216,63586.0,63585.0,0.003124]
[1719861070245,1.32890026,63586.0,63585.0,0.003124]
[1719861071787,2.43104801,63586.0,63585.0,0.00189055]
[1719861072006,2.43104801,63586.0,63575.0,0.000924]
[1719861072007,0.157286,63579.0,63575.0,0.000924]
[1719861072226,0.28885849,63578.0,63575.0,0.060224]
[1719861072444,0.12651951,63577.0,63575.0,0.060224]
[1719861072670,0.1736084,63578.0,63575.0,0.060224]
[1719861072671,0.25596303,63576.0,63575.0,0.060224]
[1719861073071,0.08419656,63576.0,63575.0,0.060224]
[1719861073255,0.04725753,63576.0,63575.0,0.207024]
[1719861073467,0.02629874,63576.0,63575.0,0.209024]